bitfinex/quotes_SOLUSD_20240621
["timestamp","ask_amount","ask_price","bid_price","bid_amount"]
[1719004891346,20.0,133.57,133.53,5.991]
[1719004892833,35.4196,133.57,133.52,5.9915]
[1719004893060,29.43,133.57,133.53,5.9909]
[1719004893247,20.0,133.57,133.52,9.43]
[1719004893564,20.0,133.57,133.54,5.9906]
[1719004895059,20.0,133.57,133.53,15.4209]
[1719004895229,20.0,133.57,133.47,14.9837]
[1719004895433,9.43,133.54,133.49,9.43]
[1719004895743,9.43,133.54,133.5,5.9924]
[1719004895952,15.4205,133.55,133.5,5.9924]
[1719004896150,5.9909,133.54,133.49,15.4229]
[1719004896357,5.9909,133.54,133.5,9.43]
[1719004896854,5.9909,133.54,133.5,15.4224]
[1719004897167,15.4204,133.55,133.5,15.4224]
[1719004897370,20.0,133.54,133.5,15.4224]
[1719004898240,25.9907,133.54,133.5,15.4224]
[1719004898466,25.9907,133.54,133.5,9.43]
[1719004899556,25.9907,133.54,133.49,5.9927]
[1719004899758,25.9907,133.54,133.49,15.4227]
[1719004900674,25.9907,133.54,133.5,5.9924]
[1719004900675,20.0,133.54,133.5,5.9924]
[1719004900883,6.3518,133.53,133.5,5.9924]
[1719004901482,6.3518,133.53,133.49,9.43]
[1719004901660,6.3518,133.53,133.49,15.4227]
[1719004901847,6.3518,133.53,133.47,5.9934]
[1719004902049,6.3518,133.53,133.46,0.8857401]
[1719004902050,21.7731,133.53,133.48,15.4231]
[1719004902676,15.7818,133.53,133.49,5.9929]
[1719004902840,6.3518,133.53,133.49,5.9929]
[1719004903174,6.3518,133.53,133.49,15.4229]
[1719004903570,12.343,133.53,133.49,5.9929]
[1719004903946,12.343,133.53,133.49,15.4229]
[1719004904141,5.9919,133.52,133.47,9.43]
[1719004904347,9.43,133.52,133.48,5.9932]
[1719004904575,12.3432,133.53,133.48,5.9932]
[1719004904881,20.0,133.52,133.48,15.4232]
[1719004905175,29.43,133.52,133.48,5.9932]
[1719004905345,29.43,133.52,133.47,5.9936]
[1719004905346,9.43,133.51,133.47,5.9936]
[1719004909695,35.4216,133.52,133.47,5.9936]
[1719004911405,35.4216,133.52,133.47,15.4236]
[1719004912085,25.9916,133.52,133.47,15.4236]
[1719004912383,29.43,133.52,133.46,0.8857401]
[1719004912574,5.9927,133.5,133.46,16.3099401]
[1719004912770,20.0,133.49,133.46,16.3099401]
[1719004913490,20.0,133.5,133.46,16.3099401]
[1719004913906,20.0,133.5,133.46,15.806694]
[1719004914409,25.9925,133.5,133.46,15.806694]
[1719004915211,25.9925,133.5,133.46,6.376694]
[1719004915381,35.4225,133.5,133.46,0.382494]
[1719004917910,5.993,133.49,133.46,0.382494]
[1719004918890,5.9934,133.48,133.46,0.382494]
[1719004919272,5.9938,133.47,133.46,0.382494]
[1719004919799,5.9934,133.48,133.46,0.382494]
[1719004919985,15.4234,133.48,133.46,0.382494]
[1719004923784,5.9938,133.47,133.46,0.382494]
[1719004923987,15.4236,133.48,133.46,0.382494]
[1719004924889,5.9936,133.48,133.46,0.382494]
[1719004926110,21.3307,133.53,133.46,0.382494]
[1719004926314,9.43,133.52,133.47,9.43]
[1719004926609,15.4224,133.51,133.46,15.806494]
[1719004927985,20.0,133.53,133.47,9.43]
[1719004928188,35.4216,133.52,133.47,15.4234]
[1719004928389,5.9924,133.51,133.47,9.43]
[1719004928705,9.43,133.5,133.46,6.376694]
[1719004930493,15.4238,133.48,133.46,0.382494]
[1719004931921,9.43,133.48,133.46,0.382494]
[1719004932289,15.4222,133.51,133.46,6.376494]
[1719004932492,9.43,133.51,133.47,5.9937]
[1719004932692,5.9926,133.5,133.46,9.812494]
[1719004932907,15.4226,133.5,133.46,0.382494]
[1719004933215,9.43,133.5,133.46,6.376694]
[1719004933615,15.4225,133.5,133.46,6.376694]
[1719004933909,15.4225,133.5,133.46,0.382494]
[1719004934110,15.4231,133.49,133.46,0.382494]
[1719004934416,5.9938,133.47,133.46,0.382494]
[1719004934618,35.4238,133.47,133.46,0.382494]
[1719004936487,25.9938,133.47,133.46,0.382494]
[1719004936709,35.4238,133.47,133.46,0.382494]
[1719004945305,25.9938,133.47,133.46,0.382494]
[1719004945505,35.4238,133.47,133.46,0.382494]
[1719004948924,20.0,133.47,133.46,0.382494]
[1719004949636,25.9938,133.47,133.46,0.382494]
[1719004950616,35.4238,133.47,133.46,0.382494]
[1719004952123,20.0,133.47,133.46,0.382494]
[1719004952515,25.9938,133.47,133.46,0.382494]
[1719004953835,35.4238,133.47,133.46,0.382494]
[1719004955609,25.9938,133.47,133.46,0.382494]
[1719004955811,35.4238,133.47,133.46,0.382494]
[1719004959821,20.0,133.47,133.46,0.382494]
[1719004961220,25.9938,133.47,133.46,0.382494]
[1719004961533,35.4238,133.47,133.46,0.382494]
[1719004961942,20.0,133.47,133.46,0.382494]
[1719004962622,25.9938,133.47,133.46,0.382494]
[1719004962820,35.4238,133.47,133.46,0.382494]
[1719004963649,35.5938,133.47,133.46,9.4e-05]
[1719004963817,5.9965,133.41,133.4,0.8669058]
[1719004964015,15.4265,133.41,133.4,0.8669058]
[1719004964646,5.9962,133.42,133.4,0.8669058]
[1719004964820,15.4262,133.42,133.4,0.8669058]
[1719004965556,5.9987,133.37,133.34,15.5544]
[1719004965840,29.6,133.41,133.31,22.1559]
[1719004965841,9.43,133.38,133.31,22.1559]
[1719004966039,5.9977,133.39,133.34,5.9996]
[1719004966243,35.3316,133.41,133.31,22.1559]
[1719004966244,29.43,133.38,133.31,22.1559]
[1719004966451,9.43,133.38,133.33,9.43]
[1719004966825,20.0,133.37,133.33,15.4298]
[1719004967328,20.0,133.37,133.33,5.9998]
[1719004967632,20.0,133.37,133.31,22.1559]
[1719004967831,15.4289,133.36,133.31,22.1559]
[1719004968040,15.4289,133.36,133.31,37.5868]
[1719004968240,15.4285,133.37,133.31,37.5868]
[1719004968445,15.4285,133.37,133.32,6.0005]
[1719004969130,9.43,133.36,133.31,37.5868]
[1719004969335,15.4289,133.36,133.31,31.5859]
[1719004969579,15.4289,133.36,133.31,28.1568]
[1719004969580,9.43,133.36,133.31,28.1568]
[1719004969750,9.43,133.36,133.31,37.5868]
[1719004970148,9.43,133.35,133.27,0.8669058]
[1719004970333,9.43,133.31,133.27,0.8669058]
[1719004970732,9.43,133.31,133.27,6.8697058]
[1719004970963,9.43,133.32,133.27,6.8697058]
[1719004971247,25.9997,133.34,133.28,6.0022]
[1719004971430,9.43,133.33,133.28,6.0022]
[1719004971631,20.0,133.32,133.28,6.0022]
[1719004972826,9.43,133.33,133.28,6.0022]
[1719004973558,9.43,133.34,133.29,6.0018]
[1719004973854,26.0002,133.33,133.28,15.5544]
[1719004974362,6.0006,133.32,133.28,15.5544]
[1719004974652,15.431,133.31,133.28,15.5544]
[1719004975151,9.43,133.31,133.28,15.5544]
[1719004975327,15.4313,133.31,133.28,15.5544]
[1719004975754,6.0015,133.3,133.27,0.8669058]
[1719004975931,26.2039,133.34,133.27,0.8669058]
[1719004975932,15.432,133.29,133.27,0.8669058]
[1719004976333,9.43,133.29,133.27,0.8669058]
[1719004976653,6.0016,133.3,133.27,0.8669058]
[1719004976849,15.4319,133.29,133.27,0.8669058]
[1719004978250,9.43,133.28,133.27,0.8669058]
[1719004978872,15.4324,133.28,133.27,0.8669058]
[1719004979357,35.6024,133.28,133.27,0.8669058]
[1719004979540,35.7724,133.28,133.27,0.8669058]
[1719004980153,35.6024,133.28,133.27,0.8669058]
[1719004980349,26.1724,133.28,133.27,0.8669058]
[1719004980557,29.43,133.28,133.27,0.8669058]
[1719004980738,29.77,133.28,133.27,0.8669058]
[1719004980942,35.7724,133.28,133.27,0.8669058]
[1719004981136,35.6024,133.28,133.27,0.8669058]
[1719004981335,35.7724,133.28,133.27,0.8669058]
[1719004981733,29.43,133.28,133.27,0.8669058]
[1719004981977,35.4324,133.28,133.27,0.8669058]
[1719004982131,29.43,133.28,133.27,0.8669058]
[1719004982335,26.0024,133.28,133.27,0.8669058]
[1719004982543,35.4324,133.28,133.27,0.8669058]
[1719004983231,35.6024,133.28,133.27,0.8669058]
[1719004983655,26.0024,133.28,133.27,0.8669058]
[1719004983863,35.6024,133.28,133.27,0.8669058]
[1719004984241,35.7724,133.28,133.27,0.8669058]
[1719004984592,26.3424,133.28,133.27,0.8669058]
[1719004984764,35.7724,133.28,133.27,0.8669058]
[1719004985261,26.3424,133.28,133.27,0.8669058]
[1719004985649,35.7724,133.28,133.27,0.8669058]
[1719004985856,6.0045,133.24,133.19,6.065]
[1719004986158,39.2,133.28,133.19,21.501]
[1719004986159,15.4338,133.25,133.19,21.501]
[1719004986357,15.4338,133.25,133.2,6.0059]
[1719004986538,15.4338,133.25,133.19,15.495]
[1719004986539,36.9812,133.25,133.14,53.722]
[1719004986866,15.4355,133.21,133.16,6.0075]
[1719004987039,6.0055,133.21,133.16,6.0075]
[1719004987245,6.0058,133.21,133.16,6.0075]
[1719004987443,6.0058,133.21,133.16,15.4375]
[1719004987751,9.43,133.22,133.16,6.0075]
[1719004987959,15.4352,133.22,133.16,9.43]
[1719004988265,6.0047,133.23,133.18,9.43]
[1719004988462,35.4343,133.24,133.18,15.4366]
[1719004988639,6.0046,133.23,133.18,6.0066]
[1719004988845,15.4346,133.23,133.18,9.43]
[1719004989364,15.4347,133.23,133.14,68.7436]
[1719004989571,15.4347,133.23,133.18,9.43]
[1719004989764,6.0051,133.22,133.18,9.43]
[1719004989974,6.0051,133.22,133.17,15.4371]
[1719004990175,6.0051,133.22,133.14,31.0236]
[1719004990341,15.4351,133.22,133.17,9.43]
[1719004990542,9.43,133.23,133.17,6.0071]
[1719004990839,6.0051,133.22,133.17,6.0071]
[1719004991164,6.0064,133.2,133.14,22.0105]
[1719004991366,9.43,133.2,133.14,31.4405]
[1719004991660,9.43,133.2,133.14,16.002]
[1719004991863,6.0071,133.18,133.14,16.002]
[1719004992084,6.0073,133.17,133.13,0.8669058]
[1719004992274,6.0708,133.17,133.13,0.8669058]
[1719004992441,9.43,133.14,133.13,0.8669058]
[1719004992640,15.9002,133.18,133.13,0.8669058]
[1719004992888,9.43,133.16,133.13,0.8669058]
[1719004993472,15.4379,133.16,133.13,0.8669058]
[1719004993674,9.43,133.16,133.13,0.8669058]
[1719004993873,6.0083,133.15,133.13,0.8669058]
[1719004994044,6.0078,133.16,133.13,0.8669058]
[1719004994241,15.4387,133.14,133.13,0.8669058]
[1719004994452,9.43,133.14,133.13,0.8669058]
[1719004994673,15.4383,133.15,133.13,0.8669058]
[1719004994870,15.4386,133.15,133.13,0.8669058]
[1719004995444,0.17,133.16,133.13,0.8669058]
[1719004995674,6.0082,133.15,133.13,0.8669058]
[1719004996269,6.0087,133.14,133.13,0.8669058]
[1719004996479,6.3487,133.14,133.13,0.8669058]
[1719004996654,0.34,133.14,133.13,0.8669058]
[1719004996846,6.3487,133.14,133.13,0.8669058]
[1719004997364,6.0084,133.15,133.13,0.8669058]
[1719004997554,0.34,133.14,133.13,0.8669058]
[1719004997880,6.3487,133.14,133.13,0.8669058]
[1719004998061,0.34,133.14,133.13,0.8669058]
[1719004998448,6.0087,133.14,133.13,0.8669058]
[1719004998781,6.3487,133.14,133.13,0.8669058]
[1719004998949,0.34,133.14,133.13,0.8669058]
[1719004999160,20.0,133.17,133.13,0.8669058]
[1719004999372,6.0084,133.15,133.13,0.8669058]
[1719004999677,6.0083,133.15,133.13,0.8669058]
[1719005000370,0.17,133.14,133.13,0.8669058]
[1719005000987,6.0085,133.15,133.13,0.8669058]
[1719005001153,20.0,133.17,133.13,0.8669058]
[1719005001350,6.0087,133.14,133.13,0.8669058]
[1719005001684,6.0083,133.15,133.13,0.8669058]
[1719005002182,0.17,133.14,133.13,0.8669058]
[1719005002354,0.34,133.14,133.13,0.8669058]
[1719005002857,6.0087,133.15,133.13,0.8669058]
[1719005003060,2.37089815,133.16,133.13,0.8669058]
[1719005003264,6.0087,133.14,133.13,0.8669058]
[1719005003758,2.37089815,133.16,133.13,0.8669058]
[1719005003961,6.0085,133.15,133.13,0.8669058]
[1719005004771,2.37089815,133.16,133.13,0.8669058]
[1719005004955,6.0084,133.15,133.13,0.8669058]
[1719005005155,0.34,133.14,133.13,0.8669058]
[1719005005462,6.0087,133.14,133.13,0.8669058]
[1719005005670,2.37089815,133.16,133.13,0.8669058]
[1719005005852,6.0087,133.14,133.13,0.8669058]
[1719005006051,6.1787,133.14,133.13,0.8669058]
[1719005006374,99.872,133.14,133.06,16.002]
[1719005006560,6.0102,133.11,133.06,16.002]
[1719005006879,6.0105,133.1,133.06,16.002]
[1719005007199,6.0101,133.11,133.06,16.002]
[1719005007482,6.0103,133.11,133.06,22.0141]
[1719005007678,0.34,133.1,133.06,16.4040936]
[1719005008477,6.0111,133.09,133.06,16.4040936]
[1719005008687,6.3508,133.1,133.06,16.4040936]
[1719005008887,6.0118,133.07,133.06,0.4020936]
[1719005009101,6.0118,133.07,132.97,16.5363]
[1719005009102,35.0297,133.07,132.97,16.5363]
[1719005009383,6.0134,133.04,132.98,6.0155]
[1719005009574,26.0137,133.03,132.98,6.0155]
[1719005009763,0.17,133.05,132.97,16.5363]
[1719005009957,6.0135,133.04,132.98,6.0157]
[1719005010163,6.0138,133.03,132.97,16.5363]
[1719005010361,6.0141,133.02,132.97,16.5363]
[1719005010676,0.17,133.05,132.97,22.5523]
[1719005010873,0.17,133.05,132.97,16.5363]
[1719005011075,6.0141,133.02,132.97,16.5363]
[1719005011590,6.0141,133.02,132.97,22.5525]
[1719005012256,6.013,133.05,133.0,6.0149]
[1719005012460,6.0128,133.05,133.0,6.0149]
[1719005012672,26.0125,133.06,133.0,6.0149]
[1719005013257,6.0135,133.04,132.99,6.0153]
[1719005013768,20.0,133.06,132.97,16.5363]
[1719005013980,20.0,133.06,132.99,6.0153]
[1719005013981,0.17,133.05,132.99,6.0153]
[1719005014159,6.0132,133.04,132.99,6.0153]
[1719005014354,6.3529,133.05,132.99,6.0153]
[1719005014578,6.0133,133.04,132.99,6.0153]
[1719005014789,6.0133,133.04,132.98,6.0157]
[1719005014963,6.0133,133.04,132.99,6.0153]
[1719005015285,0.34,133.05,132.97,16.5363]
[1719005015468,6.0139,133.03,132.98,6.0154]
[1719005015657,6.0139,133.03,132.97,22.5525]
[1719005015858,6.0141,133.02,132.97,22.5526]
[1719005016055,0.17,133.04,132.97,22.5526]
[1719005016268,6.0138,133.03,132.97,22.5526]
[1719005016485,6.0138,133.03,132.98,6.0159]
[1719005016693,6.0141,133.02,132.97,22.5523]
[1719005016979,6.0139,133.03,132.98,6.0155]
[1719005017186,6.0142,133.02,132.97,22.5526]
[1719005017384,6.0145,133.01,132.97,16.5363]
[1719005017773,15.0319,133.06,132.98,6.0156]
[1719005017987,6.0143,133.02,132.97,22.5525]
[1719005018278,6.0138,133.03,132.98,6.0159]
[1719005018483,6.0142,133.02,132.97,22.5524]
[1719005019271,6.0146,133.01,132.97,16.5363]
[1719005019590,6.0142,133.02,132.97,22.5525]
[1719005020087,6.0146,133.01,132.97,16.5363]
[1719005020592,6.0143,133.02,132.97,22.5526]
[1719005020892,6.0146,133.01,132.97,16.5363]
[1719005021268,0.34,133.03,132.94,7.3807234]
[1719005021474,6.0172,132.95,132.94,7.3807234]
[1719005021674,6.0172,132.95,132.94,0.8608234]
[1719005022192,6.1872,132.95,132.94,0.8608234]
[1719005022500,6.3572,132.95,132.94,0.8608234]
[1719005025990,6.2395,133.01,132.94,0.8608234]
[1719005026292,6.0162,132.98,132.94,0.8608234]
[1719005026587,20.0,133.0,132.94,0.8608234]
[1719005026794,20.0,133.0,132.94,6.8783234]
[1719005026996,6.0157,132.99,132.94,6.8783234]
[1719005027491,35.0377,133.0,132.94,0.8608234]
[1719005027663,6.0162,132.98,132.94,0.8608234]
[1719005027986,6.0156,132.99,132.94,6.8782234]
[1719005028287,20.0,133.0,132.94,0.8608234]
[1719005028485,6.0156,132.99,132.94,6.8784234]
[1719005028671,6.0159,132.98,132.94,0.8608234]
[1719005028877,6.0157,132.99,132.94,6.8784234]
[1719005029289,26.0152,133.0,132.95,6.0172]
[1719005029672,8.95039815,133.01,132.95,6.0172]
[1719005029673,2.37089815,133.01,132.95,6.3778]
[1719005030193,6.0132,133.04,132.99,6.0153]
[1719005030372,20.0,133.03,132.95,21.4208]
[1719005030768,15.033,133.06,132.97,15.0402]
[1719005030967,15.033,133.06,133.02,6.0137]
[1719005031192,6.2395,133.12,133.01,22.865]
[1719005031377,6.0105,133.1,133.05,6.0124]
[1719005031687,20.0,133.11,133.06,6.0122]
[1719005031688,26.0102,133.11,133.06,6.0122]
[1719005031876,6.011,133.09,133.03,6.0133]
[1719005032079,6.0117,133.08,133.02,6.014]
[1719005032292,8.61039815,133.12,133.05,6.0125]
[1719005032470,6.0106,133.1,133.05,6.0125]
[1719005033196,6.0112,133.09,133.01,22.865]
[1719005033374,8.61039815,133.12,133.02,15.0351]
[1719005033577,6.0106,133.1,133.04,6.0129]
[1719005033792,6.0106,133.1,133.05,6.0127]
[1719005033986,6.0105,133.1,133.05,6.0127]
[1719005036189,2.37089815,133.12,133.02,15.0351]
[1719005036396,26.0098,133.12,133.07,6.0116]
[1719005036703,20.0,133.12,133.07,6.0116]
[1719005037391,26.0097,133.12,133.07,6.0116]
[1719005038090,6.0093,133.13,133.08,6.0113]
[1719005038287,6.0096,133.12,133.07,6.0117]
[1719005038486,6.0096,133.12,133.04,15.0329]
[1719005038694,6.0096,133.12,133.07,6.0117]
[1719005039209,6.0092,133.13,133.08,6.0113]
[1719005039403,6.0096,133.12,133.07,6.0118]
[1719005039596,6.0093,133.13,133.08,6.0114]
[1719005039902,6.0093,133.13,133.04,15.0329]
[1719005039903,6.0096,133.12,133.07,6.0116]
[1719005040076,6.0093,133.13,133.08,6.0113]
[1719005040282,6.0088,133.14,133.09,6.0108]
[1719005040483,6.0088,133.14,133.02,126.3492]
[1719005040484,6.2395,133.15,133.07,31.572]
[1719005040778,6.0097,133.12,133.07,22.5546]
[1719005041001,6.0094,133.13,133.08,6.0111]
[1719005041907,6.0089,133.14,133.07,16.5431]
[1719005042103,6.0084,133.15,133.1,6.0105]
[1719005043479,6.0087,133.14,133.1,6.0104]
[1719005043682,16.5476,133.17,133.07,16.5431]
[1719005043879,20.0,133.16,133.07,16.5431]
[1719005044101,20.0,133.16,133.09,6.0107]
[1719005044283,6.0084,133.15,133.1,6.0104]
[1719005044590,6.0088,133.14,133.09,6.0107]
[1719005045209,6.0094,133.13,133.08,6.0112]
[1719005045420,6.0094,133.13,133.09,6.0109]
[1719005046513,6.0084,133.15,133.1,6.0104]
[1719005046834,20.0,133.16,133.11,6.01]
[1719005046835,26.0079,133.16,133.11,6.01]
[1719005046983,6.0088,133.14,133.09,6.0108]
[1719005047183,6.0084,133.15,133.1,6.0104]
[1719005048216,15.0152,133.2,133.08,67.77]
[1719005048419,52.3097,133.23,133.09,28.85]
[1719005048622,6.0068,133.19,133.14,6.0084]
[1719005048813,6.0069,133.18,133.14,6.0084]
[1719005049706,6.0069,133.18,133.13,6.0089]
[1719005050418,6.0081,133.16,133.12,6.0096]
[1719005050904,6.0075,133.17,133.12,6.0096]
[1719005051412,6.0079,133.16,133.11,6.0097]
[1719005052010,6.0079,133.16,133.11,6.0098]
[1719005052420,16.2488,133.19,133.07,22.8556]
[1719005052600,16.2488,133.19,132.99,30.0769]
[1719005052601,15.0241,133.12,133.04,16.5431]
[1719005052786,15.0232,133.13,133.04,16.5431]
[1719005052996,6.0107,133.1,133.04,22.5562]
[1719005053192,6.0106,133.1,133.05,6.0126]
[1719005054220,6.0105,133.1,133.05,6.0126]
[1719005054716,6.0102,133.11,133.05,6.0126]
[1719005054909,6.0102,133.11,133.06,6.0122]
[1719005055111,15.0275,133.09,132.98,22.8556]
[1719005055296,15.03,133.07,132.98,22.8556]
[1719005055491,6.0129,133.05,133.0,6.0149]
[1719005055710,6.0354,133.08,132.98,16.5431]
[1719005055899,6.0354,133.08,132.98,6.0159]
[1719005055900,65.34,133.07,132.98,6.0159]
[1719005056103,6.0137,133.03,132.98,6.0159]
[1719005056315,16.2488,133.04,132.94,0.8608234]
[1719005056523,20.0,133.02,132.94,0.8608234]
[1719005056698,26.0142,133.02,132.96,6.0167]
[1719005057226,6.0158,132.99,132.94,0.8608234]
[1719005057521,35.0356,133.02,132.94,0.8608234]
[1719005057522,20.0,133.02,132.94,0.8608234]
[1719005057717,20.34,133.03,132.94,0.8608234]
[1719005057894,37.3132,133.08,132.94,0.8608234]
[1719005058097,0.34,133.07,132.94,0.8608234]
[1719005058310,6.0137,133.03,132.97,6.0163]
[1719005058696,6.0137,133.03,132.94,0.8608234]
[1719005058697,6.0133,133.04,132.98,6.0159]
[1719005058897,20.0,133.03,132.98,6.0159]
[1719005059212,26.014,133.03,132.97,6.0163]
[1719005059407,22.2842,133.08,132.95,15.0429]
[1719005059650,6.013,133.05,132.99,6.0154]
[1719005060414,6.013,133.05,133.0,6.015]
[1719005061307,22.2842,133.08,133.01,6.0145]
[1719005061308,6.0124,133.06,133.01,6.0145]
[1719005061511,6.012,133.07,133.01,6.0144]
[1719005062627,6.012,133.07,133.02,6.0141]
[1719005062933,6.0123,133.06,132.99,15.8143]
[1719005063440,6.012,133.07,133.01,6.0142]
[1719005063740,0.17,133.06,132.97,15.0406]
[1719005064025,6.0131,133.05,132.99,6.0153]
[1719005064230,6.0131,133.05,132.97,15.0406]
[1719005064539,6.0126,133.06,133.01,6.0145]
[1719005064720,20.0,133.07,132.99,15.0383]
[1719005064913,6.0124,133.06,133.01,6.0144]
[1719005066635,6.0128,133.05,133.0,6.0149]
[1719005066938,6.0128,133.05,132.96,15.0409]
[1719005066939,6.0132,133.04,132.99,6.0153]
[1719005067435,6.0132,133.04,133.0,6.015]
[1719005067621,6.0127,133.05,133.0,6.0147]
[1719005068421,6.0127,133.05,133.0,6.4876597]
[1719005070237,22.5558,133.05,133.0,6.4876597]
[1719005070418,6.0133,133.04,133.0,0.4729597]
[1719005070928,6.0138,133.03,133.0,0.4729597]
[1719005071335,6.0141,133.02,133.0,0.4729597]
[1719005072415,16.5431,133.05,133.0,0.4729597]
[1719005072624,6.0136,133.03,133.0,0.4729597]
[1719005076846,34.5454,133.08,133.02,6.0139]
[1719005076847,6.0121,133.07,133.02,6.0139]
[1719005077338,6.0354,133.08,133.0,0.4729597]
[1719005077556,6.0119,133.07,133.0,0.4729597]
[1719005077716,6.0119,133.07,133.02,6.0138]
[1719005079350,6.0354,133.08,133.0,15.5093597]
[1719005079527,6.0111,133.09,133.04,6.0128]
[1719005080148,6.0107,133.1,133.05,6.0127]
[1719005080355,6.6003,133.11,133.02,15.9829]
[1719005080834,6.0101,133.11,133.06,6.012]
[1719005081034,6.0107,133.1,133.03,15.0338]
[1719005081645,6.0107,133.1,133.05,6.0123]
[1719005081830,6.0101,133.11,133.03,15.0338]
[1719005082226,6.0111,133.09,133.02,15.9829]
[1719005082447,6.0111,133.09,133.04,6.0132]
[1719005082754,6.0111,133.09,133.04,6.013]
[1719005082755,6.011,133.09,133.04,6.013]
[1719005082962,6.0106,133.1,133.05,6.0127]
[1719005084038,6.0114,133.09,133.02,15.9829]
[1719005084548,6.0106,133.1,133.05,6.0125]
[1719005085355,12.6092,133.14,133.09,6.0108]
[1719005085677,6.0089,133.14,133.09,6.0108]
[1719005085949,30.9699,133.16,133.1,6.0103]
[1719005085950,6.0082,133.15,133.1,6.0103]
[1719005086654,15.95,133.16,133.09,6.0107]
[1719005086655,6.0087,133.14,133.09,6.0107]
[1719005087058,30.9701,133.16,133.06,15.0307]
[1719005087352,6.0059,133.21,133.11,28.51]
[1719005087563,6.0063,133.2,133.15,6.0079]
[1719005088257,6.0054,133.22,133.13,15.0228]
[1719005088436,6.0055,133.21,133.16,6.0076]
[1719005088630,6.006,133.2,133.15,6.0082]
[1719005088830,6.0057,133.21,133.15,6.0082]
[1719005089148,6.006,133.2,133.15,6.0082]
[1719005089340,6.0057,133.21,133.15,6.0082]
[1719005090465,24.92119815,133.23,133.16,6.0077]
[1719005090662,6.0055,133.21,133.16,6.0077]
[1719005090845,6.0052,133.22,133.17,6.0073]
[1719005091159,6.0052,133.22,133.16,6.0076]
[1719005091553,6.0055,133.21,133.16,6.0076]
[1719005092340,6.0052,133.22,133.17,6.0072]
[1719005092853,2.37089815,133.23,133.18,6.0067]
[1719005093165,6.0051,133.22,133.17,6.007]
[1719005093471,6.0051,133.22,133.18,6.0068]
[1719005093687,8.37559815,133.23,133.18,6.0068]
[1719005093981,6.0047,133.23,133.18,6.0068]
[1719005095880,6.0046,133.23,133.18,6.0067]
[1719005096776,6.0046,133.23,133.15,15.0204]
[1719005096777,6.0052,133.22,133.17,6.0071]
[1719005097392,6.0048,133.23,133.18,6.0067]
[1719005099054,30.9592,133.26,133.15,15.0204]
[1719005099371,6.0048,133.23,133.18,6.0066]
[1719005100667,6.0052,133.22,133.17,6.0071]
[1719005101010,6.0082,133.15,133.14,15.9829]
[1719005101280,20.0,133.25,133.14,15.9829]
[1719005101281,35.0149,133.21,133.14,15.9829]
[1719005101567,6.0066,133.19,133.14,21.9915]
[1719005101780,6.0061,133.2,133.15,6.0081]
[1719005101961,20.0,133.25,133.14,15.9829]
[1719005102161,15.0131,133.22,133.14,21.9916]
[1719005102368,20.0,133.21,133.14,21.9916]
[1719005102675,6.0066,133.19,133.14,21.9916]
[1719005104064,6.0069,133.18,133.14,21.9916]
[1719005104267,6.0069,133.18,133.14,15.9829]
[1719005104996,6.0065,133.19,133.14,21.9915]
[1719005106495,20.0,133.21,133.14,15.9829]
[1719005106670,0.17,133.23,133.14,15.9829]
[1719005107189,6.006,133.2,133.15,6.008]
[1719005108198,6.006,133.2,133.14,15.9829]
[1719005108698,6.006,133.2,133.15,6.0079]
[1719005109000,6.0065,133.19,133.14,21.9914]